[Event "CCT Chessable Masters Playoffs 2025"]
[Site "Online"]
[Date "2025.02.18"]
[Round "1"]
[White "Firouzja, Alireza"]
[Black "Giri, Anish"]
[Result "1-0"]
[Annotator "TA"]
[ECO "C55"]
[WhiteElo "2760"]
[BlackElo "2728"]
[PlyCount "89"]
[EventDate "2025.02.13"]
[EventType "k.o."]
[EventCountry "NET"]
[SourceTitle "playchess.com"]
[Source "ChessBase"]
[SourceQuality "1"]
[TimeControl "600"]

{[%evp 11,89,21,14,19,14,8,30,20,28,16,26,-10,-2,-4,0,-6,-5,-18,-20,-24,-8,-27,-17,-50,-57,-60,-47,-47,-4,-17,0,-18,4,-74,-71,-72,-15,-48,-63,-56,-54,-85,-57,-91,-77,-94,-61,-105,-57,-104,-102,-108,-107,-87,-98,-112,-107,-197,-185,-222,-215,-189,-214,-411,-406,-460,-470,-663,-685,-610,1143,1129,1070,1037,29986,29987,29987,29988,29988,29989]} 1. e4 {[%emt 0:00:00]} e5 {[%emt 0:00:00]} 2. Nf3 {[%emt 0:00:01]} Nc6 {[%emt 0:00:01]} 3. Bc4 {[%emt 0:00:01]} Nf6 {[%emt 0:00:01]} 4. d3 {[%emt 0:00:00]} Be7 {[%emt 0:00:00]} 5. O-O {[%emt 0:00:02]} O-O {[%emt 0:00:01]} 6. Nc3 {[%emt 0:00:02]} d6 {[%emt 0:00:01]} 7. a4 {[%emt 0:00:01][%cal Ba2a4,Ba4a5][%mdl 32] 7.a3 is setting a new trend. C55: Two Knights: 4 d3, 4 d4 exd4 5 e5 and Max Lange Attack.} Bg4 {[%emt 0:00:01]} 8. h3 {[%emt 0:00:01]} Bh5 {[%emt 0:00:00]} 9. a5 $5 {[%emt 0:00:02][%mdl 4] White has an edge. A promising side line.} a6 {[%emt 0:00:03]} 10. Be3 {[%emt 0:00:09]} Kh8 {[%emt 0:00:26]} 11. Nd5 {[%emt 0:00:31]} Nxd5 {[%emt 0:00:08]} 12. Bxd5 {[%emt 0:00:01] [#]} Nxa5 $1 {[%emt 0:00:20]} 13. g4 {[%emt 0:00:56]} Bg6 {[%emt 0:00:13]} (13... c6 $2 14. Ba2 $18) 14. Rxa5 {[%emt 0:00:16]} c6 {[%emt 0:00:01]} 15. Qd2 {[%emt 0:00:01]} cxd5 {[%emt 0:00:10]} 16. Rxd5 {[%emt 0:00:00] [#] aiming for Nxe5.} f6 {[%emt 0:00:14] Black wants to play ...b5.} 17. Nh4 $146 {[%emt 0:02:16]} (17. Ra5 b6 18. Raa1 d5 19. exd5 Qxd5 20. Nh4 Be8 21. Nf5 Bd8 22. Qb4 Rg8 23. Qe4 Qxe4 24. dxe4 {½-½ Vokhidov,S (2414)-Abdusattorov,N (2550) UZB-ch Tashkent 2018 (12)}) 17... Bf7 {[%emt 0:00:02]} 18. Ra5 {[%emt 0:00:01]} d5 {[%emt 0:00:17]} 19. exd5 {[%emt 0:00:14]} b6 {[%emt 0:00:19]} 20. Raa1 {[%emt 0:00:03]} Bxd5 {[%emt 0:00:06]} 21. Nf5 {[%emt 0:00:02]} Rf7 {[%emt 0:00:50]} 22. f3 {[%emt 0:00:16]} (22. d4 $1 $11 {keeps the balance.}) 22... Bf8 $36 {[%emt 0:00:07][%mdl 2048] Black is really pushing.} 23. Qf2 {[%emt 0:00:02]} Rb7 {[%emt 0:00:37]} (23... b5 $17) 24. f4 {[%emt 0:00:05]} exf4 {[%emt 0:00:06] NOTEXT-51077 Black (f4)} 25. Bxf4 {[%emt 0:00:03]} a5 {[%emt 0:00:23]} 26. Rae1 {[%emt 0:00:17]} Rc8 {[%emt 0:00:13]} 27. Be3 {[%emt 0:00:23]} b5 {[%emt 0:00:09]} 28. Bd4 {[%emt 0:00:02]} Kg8 {[%emt 0:01:04]} 29. h4 {[%emt 0:00:07]} Bf7 {[%emt 0:00:47]} (29... Rf7 $17 30. c3 Bc6) 30. h5 {[%emt 0:00:04]} (30. Re4 $15 {should be considered.}) 30... h6 {[%emt 0:00:10]} 31. Re2 {[%emt 0:00:28]} a4 {[%emt 0:00:01]} 32. Qf3 {[%emt 0:01:05]} Bd5 {[%emt 0:00:10]} 33. Qe3 {[%emt 0:00:07][%cal Og4g5]} b4 {[%emt 0:00:06]} 34. Kh2 {[%emt 0:00:23]} (34. g5 $17 hxg5 35. h6) 34... Bf7 {[%emt 0:00:11]} 35. Kh3 {[%emt 0:00:02]} a3 {[%emt 0:00:03]} 36. bxa3 {[%emt 0:00:01]} bxa3 {[%emt 0:00:00]} 37. c4 $2 {[%emt 0:00:01]} (37. Qf4) 37... Rb3 $19 {[%emt 0:00:04]} 38. Rd2 {[%emt 0:00:10]} Bxc4 {[%emt 0:00:09]} 39. Nxh6+ {[%emt 0:00:06]} (39. Kh4 $142) 39... gxh6 {[%emt 0:00:03]} 40. Rxf6 {[%emt 0:00:02]} Qe8 {[%emt 0:00:49][%mdl 8192]} (40... Qd5 $19 41. Rg6+ Kh7) 41. Rg6+ $18 {[%emt 0:00:22]} Kh7 {[%emt 0:00:03]} 42. Qf3 {[%emt 0:00:01] Threatening mate with Qf5.} Qe1 {[%emt 0:01:05]} 43. Qf5 {[%emt 0:00:10][%csl Gf5][%cal Rg6g5] White mates.} Qh1+ {[%emt 0:00:02]} 44. Kg3 {[%emt 0:00:00][%csl Gf5][%cal Rg6g5]} Qe1+ {[%emt 0:00:20]} 45. Bf2 {[%emt 0:00:10] Weighted Error Value: White=0.29 (precise) /Black=0.42  Mistake:       	White=5     	Black=2      Inaccurate:     	White=6     	Black=3      OK:         	White=8     	Black=14     Best:        	---       	Black=4} 1-0

[Event "CCT Chessable Masters Playoffs 2025"]
[Site "Online"]
[Date "2025.02.18"]
[Round "1"]
[White "Wei, Yi"]
[Black "Praggnanandhaa R"]
[Result "1/2-1/2"]
[Annotator "TA"]
[ECO "A33"]
[WhiteElo "2755"]
[BlackElo "2741"]
[PlyCount "43"]
[EventDate "2025.02.13"]
[EventType "k.o."]
[EventCountry "NET"]
[SourceTitle "playchess.com"]
[Source "ChessBase"]
[SourceQuality "1"]
[TimeControl "600"]

{[%evp 17,43,0,0,0,0,-6,0,-7,7,0,3,0,50,6,62,57,81,76,80,77,91,62,66,0,72,0,68,0]} 1. Nf3 {[%emt 0:00:01]} Nf6 {[%emt 0:00:02]} 2. c4 {[%emt 0:00:01]} c5 {[%emt 0:00:01]} 3. Nc3 {[%emt 0:00:02]} Nc6 {[%emt 0:00:01]} 4. d4 {[%emt 0:00:01]} cxd4 {[%emt 0:00:00]} 5. Nxd4 {[%emt 0:00:01]} e6 {[%emt 0:00:00]} 6. g3 {[%emt 0:00:00]} Qb6 {[%emt 0:00:01]} 7. Nb3 {[%emt 0:00:01]} Ne5 {[%emt 0:00:02]} 8. e4 {[%emt 0:00:01]} Bb4 {[%emt 0:00:00]} 9. Qe2 {[%emt 0:00:01]} d6 $1 {[%emt 0:00:12]} 10. Bd2 {[%emt 0:00:14] A33: Symmetrical English: 2 Nf3 Nf6 3 d4 cxd4 4 Nxd4 e6 5 Nc3 Nc6.} a5 {[%emt 0:00:01]} 11. f4 {[%emt 0:00:12]} Nc6 {[%emt 0:00:12] With the idea ...a4.} 12. Be3 {[%emt 0:00:04] The position is equal.} Qc7 {[%emt 0:00:15]} 13. Nd2 {[%emt 0:00:10]} Bxc3 {[%emt 0:00:36]} 14. bxc3 {[%emt 0:00:02]} e5 {[%emt 0:00:00]} (14... b6 $11) 15. f5 $146 {[%emt 0:00:28]} (15. Bg2 Ng4 16. Bg1 exf4 17. gxf4 Qe7 18. h3 Qh4+ 19. Kd1 Nf6 20. Be3 O-O 21. Qf2 Qxf2 22. Bxf2 {1-0 Mareco,S (2599)-Krysa,L (2464) ARG-chT Villa Martelli 2015 (5.1)}) 15... a4 {[%emt 0:01:18]} (15... Nb8 $11) 16. g4 {[%emt 0:00:20][%cal Bg3g4,Bg4g5][%mdl 32]} b6 {[%emt 0:00:14]} 17. Rb1 {[%emt 0:00:46]} Nd7 {[%emt 0:00:17]} 18. g5 {[%emt 0:00:33] White is more active.} Na5 {[%emt 0:00:36]} 19. Rb4 {[%emt 0:00:40]} Nc6 {[%emt 0:00:03]} 20. Rb1 {[%emt 0:00:03]} Na5 $1 {[%emt 0:00:00]} 21. Rb4 {[%emt 0:00:52]} Nc6 {[%emt 0:01:07]} 22. Rb1 {[%emt 0:00:02] Weighted Error Value: White=0.21 (precise) /Black=0.12 (very precise)   Mistake:       	White=1     	Black=2      Inaccurate:     	White=2     	---        OK:         	White=3     	Black=5      Strong:       	---       	Black=1} ({White should play} 22. Rb5 $14) 1/2-1/2

[Event "CCT Chessable Masters Playoffs 2025"]
[Site "Online"]
[Date "2025.02.18"]
[Round "1"]
[White "Nepomniachtchi, Ian"]
[Black "Duda, Jan-Krzysztof"]
[Result "1-0"]
[Annotator "TA"]
[ECO "B12"]
[WhiteElo "2754"]
[BlackElo "2739"]
[PlyCount "135"]
[EventDate "2025.02.13"]
[EventType "k.o."]
[EventCountry "NET"]
[SourceTitle "playchess.com"]
[Source "ChessBase"]
[SourceQuality "1"]
[TimeControl "600"]

{[%evp 10,135,24,25,45,32,39,22,25,16,6,5,8,-2,36,-8,-10,-10,8,0,4,-16,16,14,6,5,14,0,14,0,0,0,0,-54,24,2,10,11,31,31,31,31,31,31,31,31,31,14,38,3,22,3,3,3,4,0,0,0,0,0,0,0,6,10,111,122,139,144,159,163,149,122,160,129,156,132,134,87,122,122,129,129,182,182,182,183,183,185,185,183,183,171,194,194,192,193,197,171,187,123,190,190,190,190,190,190,190,182,157,176,176,176,150,132,245,214,326,318,942,942,5197,4133,4133,2947,1866,1764,1279,1209]} 1. e4 {[%emt 0:00:00]} c6 {[%emt 0:00:01]} 2. d4 {[%emt 0:00:04]} d5 {[%emt 0:00:00]} 3. e5 {[%emt 0:00:00]} Bf5 {[%emt 0:00:01]} 4. Nf3 {[%emt 0:00:00][%cal Bg1f3,Bf3e1,Be1d3,Bd3b4][%mdl 32]} e6 {[%emt 0:00:01]} 5. Be2 {[%emt 0:00:01]} Nd7 {[%emt 0:00:01]} 6. O-O {[%emt 0:00:01]} a5 {[%emt 0:00:00][%cal Ba7a5,Ba5a4][%mdl 32] B12: Caro-Kann: Advance Variation.} 7. c3 {[%emt 0:00:03]} a4 {[%emt 0:00:02]} 8. Nbd2 {[%emt 0:00:05]} h6 {[%emt 0:00:02] The position is equal.} 9. Ne1 {[%emt 0:00:01]} Ne7 {[%emt 0:00:03]} 10. Bd3 {[%emt 0:00:03]} c5 {[%emt 0:00:04]} 11. Ndf3 {[%emt 0:00:13]} Qc7 $146 {[%emt 0:00:20]} (11... g5 12. Bb5 Nc6 13. dxc5 Qa5 14. Nd4 Bg6 15. Nec2 Bxc2 16. Qxc2 Bxc5 17. Bxc6 bxc6 {½-½ Kryvoruchko,Y (2705)-Donchenko,A (2587) FRA-chT Top 12 2018 (2)}) 12. Nh4 {[%emt 0:00:14]} Bxd3 {[%emt 0:00:03]} 13. Nxd3 {[%emt 0:00:00]} c4 {[%emt 0:00:14]} 14. Nb4 {[%emt 0:00:27]} Nc6 {[%emt 0:00:33]} (14... g5 $5 15. Nf3 $8 Ng6 $11) 15. a3 {[%emt 0:00:09]} b5 {[%emt 0:00:13]} 16. Qg4 {[%emt 0:00:05]} Nxb4 {[%emt 0:00:09]} 17. axb4 {[%emt 0:00:01][%cal Oh4g6]} O-O-O {[%emt 0:00:07]} 18. g3 {[%emt 0:00:18]} g6 {[%emt 0:00:08]} 19. Qf3 {[%emt 0:00:18]} Rh7 {[%emt 0:00:03]} 20. Ng2 {[%emt 0:00:03]} Be7 {[%emt 0:00:08]} 21. h4 {[%emt 0:00:06]} (21. Qe2 $11) 21... h5 {[%emt 0:00:06]} (21... g5 $15) 22. Nf4 {[%emt 0:00:02]} Qc6 {[%emt 0:00:02]} 23. Nh3 {[%emt 0:00:03]} Rg8 {[%emt 0:00:09]} 24. Bg5 {[%emt 0:00:03]} Bf8 {[%emt 0:00:01] Black is weak on the dark squares} 25. Rfe1 {[%emt 0:00:31]} Nb8 {[%emt 0:00:04][%cal Bd7b8,Bb8c6,Bc6e7,Be7f5][%mdl 32]} 26. Bf6 {[%emt 0:00:18]} Bh6 $1 {[%emt 0:00:02]} 27. Be7 {[%emt 0:00:01]} Qd7 {[%emt 0:00:03]} 28. Bg5 {[%emt 0:00:20]} Bf8 {[%emt 0:00:02]} 29. Qe2 {[%emt 0:00:23]} Kb7 {[%emt 0:00:08]} 30. f3 {[%emt 0:00:07]} Nc6 {[%emt 0:00:03]} 31. Kg2 {[%emt 0:00:03]} Ne7 {[%emt 0:00:10]} 32. Rh1 {[%emt 0:00:20]} Nf5 {[%emt 0:00:03]} 33. Qf2 {[%emt 0:00:01]} Be7 {[%emt 0:00:19]} 34. Raf1 {[%emt 0:00:03]} Kc6 {[%emt 0:00:08]} 35. Qd2 {[%emt 0:00:02]} Bf8 {[%emt 0:00:15]} 36. g4 {[%emt 0:00:11]} hxg4 {[%emt 0:00:28]} (36... Nh6 $11 {remains equal.}) 37. fxg4 $16 {[%emt 0:00:00]} Nxh4+ {[%emt 0:00:01]} 38. Kg3 {[%emt 0:00:08][%cal Bg2g3,Bg3f2,Bf2e3,Be3d2][%mdl 32] White is more active.} Nf5+ {[%emt 0:00:03]} 39. gxf5 {[%emt 0:00:06]} gxf5 {[%emt 0:00:00]} 40. Kf2 {[%emt 0:00:04]} Rgh8 {[%emt 0:00:15]} 41. Qe3 {[%emt 0:00:11]} Bh6 {[%emt 0:00:14]} 42. Bxh6 {[%emt 0:00:05]} Rxh6 {[%emt 0:00:00]} 43. Qf3 {[%emt 0:00:17]} (43. Ke1 $142) 43... Qe7 {[%emt 0:00:10][%cal Oa4a3]} 44. Nf4 {[%emt 0:00:03]} Rh2+ {[%emt 0:00:10]} 45. Ke3 {[%emt 0:00:19]} Qh4 {[%emt 0:00:15]} (45... Qd8 $16) 46. Rxh2 $18 {[%emt 0:00:03]} Qxh2 {[%emt 0:00:00]} 47. Qf2 {[%emt 0:00:00]} Qh6 {[%emt 0:00:08]} 48. Rg1 {[%emt 0:00:05] Against Rg8} Kd7 {[%emt 0:00:08]} 49. Qg3 {[%emt 0:00:13]} Ke8 {[%emt 0:00:05]} 50. Kd2 {[%emt 0:00:05]} Qh2+ {[%emt 0:00:32]} 51. Qxh2 {[%emt 0:00:03]} Rxh2+ {[%emt 0:00:00][%mdl 4096] Endgame KRN-KR} 52. Rg2 {[%emt 0:00:00]} Rh4 {[%emt 0:00:05]} 53. Rg8+ {[%emt 0:00:03]} Ke7 {[%emt 0:00:01]} 54. Ne2 {[%emt 0:00:06]} (54. Ke3 $18) 54... Rh2 {[%emt 0:00:02]} (54... f4 $16) 55. Ke3 {[%emt 0:00:10]} Rh1 {[%emt 0:00:02]} 56. Rg1 {[%emt 0:00:01]} Rh3+ {[%emt 0:00:01]} 57. Kd2 {[%emt 0:00:06]} Rh2 {[%emt 0:00:02]} 58. Ke1 {[%emt 0:00:03]} Kf8 {[%emt 0:00:02]} 59. Kf1 {[%emt 0:00:04]} Rh3 {[%emt 0:00:02]} 60. Kf2 {[%emt 0:00:03] Repels f4} Rd3 {[%emt 0:00:02]} 61. Rh1 {[%emt 0:00:08] aiming for Ke1.} Kg7 {[%emt 0:00:13]} (61... Rd2 $16 62. Rh8+ Ke7) 62. Ke1 {[%emt 0:00:03]} Rf3 {[%emt 0:00:05] Inhibits Nf4.} (62... Re3 {might work better.} 63. Rg1+ Kh7) 63. Rg1+ {[%emt 0:00:01]} Kh7 $2 {[%emt 0:00:07] [#]} (63... Kh6 64. Rg8 Re3) 64. Rg3 {[%emt 0:00:01] White is clearly winning.} Rxg3 {[%emt 0:00:02]} 65. Nxg3 {[%emt 0:00:00]} Kg6 {[%emt 0:00:02]} 66. Kf2 {[%emt 0:00:01]} Kh6 {[%emt 0:00:21]} 67. Kf3 {[%emt 0:00:01]} Kg5 {[%emt 0:00:25]} 68. Nf1 {[%emt 0:00:02] Weighted Error Value: White=0.11 (very precise) /Black=0.16 (very precise)   Mistake:       	White=3     	Black=7      Inaccurate:     	White=2     	Black=5      OK:         	White=18    	Black=20     Best:        	White=6     	---        Strong:       	---       	Black=1} 1-0

[Event "CCT Chessable Masters Playoffs 2025"]
[Site "Online"]
[Date "2025.02.18"]
[Round "1"]
[White "So, Wesley"]
[Black "Yu, Yangyi"]
[Result "1/2-1/2"]
[Annotator "TA"]
[ECO "D35"]
[WhiteElo "2747"]
[BlackElo "2715"]
[PlyCount "76"]
[EventDate "2025.02.13"]
[EventType "k.o."]
[EventCountry "NET"]
[SourceTitle "playchess.com"]
[Source "ChessBase"]
[SourceQuality "1"]
[TimeControl "600"]

{[%evp 15,76,13,14,12,12,20,6,0,27,26,22,20,19,21,32,0,0,0,12,15,17,13,11,11,16,0,0,-11,0,0,23,22,14,-162,-162,-162,-162,-162,-162,-162,-162,-162,-162,-162,-162,-162,-162,-162,-162,-162,-162,-162,-162,-162,-162,-162,-162,-162,0,-162,0,-162,0]} 1. d4 {[%emt 0:00:03]} Nf6 {[%emt 0:00:02]} 2. c4 {[%emt 0:00:04]} e6 {[%emt 0:00:01]} 3. Nc3 {[%emt 0:00:01]} d5 {[%emt 0:00:02]} 4. cxd5 {[%emt 0:00:03]} exd5 {[%emt 0:00:01]} 5. Bg5 {[%emt 0:00:01]} Be7 {[%emt 0:00:04]} 6. e3 {[%emt 0:00:02]} h6 {[%emt 0:00:01]} 7. Bh4 {[%emt 0:00:02]} O-O {[%emt 0:00:02]} 8. Bd3 {[%emt 0:00:02]} Re8 {[%emt 0:00:01]} 9. Nge2 {[%emt 0:00:03] D35: Queen's Gambit Declined: Exchange Variation.} c6 {[%emt 0:00:02]} 10. O-O {[%emt 0:00:02]} Nbd7 {[%emt 0:00:02][%cal Bb8d7,Bd7f8,Bf8e6][%mdl 32]} 11. a4 {[%emt 0:00:17][%cal Ba2a4,Ba4a5][%mdl 32] The position is equal.} Nh5 $1 {[%emt 0:00:02] 11...Nh5 scores better than 11...a5.} 12. Bxe7 {[%emt 0:00:02]} Qxe7 {[%emt 0:00:00]} 13. a5 {[%emt 0:00:01]} Nf8 {[%emt 0:00:02]} 14. Qc2 {[%emt 0:00:14]} Bg4 {[%emt 0:00:09]} 15. Ng3 $146 {[%emt 0:00:09]} ({Predecessor:} 15. h3 Bxe2 16. Nxe2 Rac8 17. Rab1 a6 18. b4 Nf6 19. Rfe1 Ne4 20. f3 Nd6 21. Ng3 {½-½ Urkedal,F (2536)-Panda,S (2377) Fagernes op 2024 (2)}) 15... Nxg3 {[%emt 0:00:08]} 16. hxg3 {[%emt 0:00:00]} Bd7 {[%emt 0:00:16]} 17. Na4 {[%emt 0:00:28]} Ne6 {[%emt 0:00:49]} 18. b4 {[%emt 0:00:09]} Rad8 {[%emt 0:00:42]} 19. Nc5 {[%emt 0:00:16]} Bc8 {[%emt 0:00:12]} 20. Rab1 {[%emt 0:00:16]} a6 {[%emt 0:00:04]} 21. Rbe1 {[%emt 0:00:17]} Nxc5 {[%emt 0:00:04]} 22. bxc5 {[%emt 0:00:02]} Qf6 {[%emt 0:00:00]} 23. Qe2 {[%emt 0:00:18]} g6 {[%emt 0:00:19]} 24. Qf3 $2 {[%emt 0:00:02]} (24. Kh2 $11 {and White stays safe.}) 24... Qxf3 $19 {[%emt 0:00:01]} 25. gxf3 {[%emt 0:00:00]} Bh3 {[%emt 0:00:01]} 26. Rb1 {[%emt 0:00:13][%cal Ob1b7] [#] Rxb7! is the strong threat.} Bxf1 {[%emt 0:00:01]} 27. Kxf1 {[%emt 0:00:00][%mdl 4096] Endgame KRR-KRB} Re7 {[%emt 0:00:01]} 28. Kg2 {[%emt 0:00:04]} Kg7 {[%emt 0:00:15]} 29. f4 {[%emt 0:00:02]} f5 {[%emt 0:00:24]} 30. Rh1 {[%emt 0:00:11]} Rh8 {[%emt 0:00:03]} 31. Kf3 {[%emt 0:00:03]} h5 {[%emt 0:00:07]} 32. Rh4 {[%emt 0:00:03]} Kf6 {[%emt 0:00:02]} 33. Kg2 {[%emt 0:00:03]} Rg7 {[%emt 0:00:06]} 34. Be2 {[%emt 0:00:06]} Rgh7 {[%emt 0:00:04]} 35. Bf3 {[%emt 0:00:05]} Ke7 {[%emt 0:00:14]} 36. Be2 {[%emt 0:00:02]} Kf6 {[%emt 0:00:00]} 37. Bf3 $1 {[%emt 0:00:01]} Ke7 {[%emt 0:00:01]} 38. Be2 $1 {[%emt 0:00:04]} Kf6 $2 {[%emt 0:00:00] Weighted Error Value: White=0.12 (very precise) /Black=0.14 (very precise)   Loses game:     	White=1     	---        Missed win:     	---       	Black=1      Inaccurate:     	White=1     	Black=1      OK:         	White=9     	Black=11     Best:        	---       	Black=2      Strong:       	White=2     	---} (38... Kd7 $19 39. Bd3 Kc7) 1/2-1/2